bitfinex-derivatives/quotes_ETHF0:USTF0_20250830
["timestamp","ask_amount","ask_price","bid_price","bid_amount"]
[1756569748089,0.3241,4371.8,4371.7,0.7084]
[1756569748680,3.2078,4372.0,4371.8,0.2844]
[1756569748883,3.2078,4372.0,4371.9,0.193]
[1756569749086,3.2078,4372.0,4371.9,0.4774]
[1756569749789,3.5319,4372.0,4371.9,0.4774]
[1756569750583,0.1274,4371.9,4371.8,0.2844]
[1756569750792,0.3241,4371.9,4371.8,0.231]
[1756569752290,0.1274,4371.8,4371.7,0.231]
[1756569752492,0.3241,4371.8,4371.7,0.5154]
[1756569752891,0.3241,4371.8,4371.7,0.2844]
[1756569753092,0.3241,4371.8,4371.7,0.7084]
[1756569753390,3.2078,4372.0,4371.7,0.7084]
[1756569753590,0.3241,4371.9,4371.8,0.2844]
[1756569753894,3.2078,4372.0,4371.8,0.193]
[1756569754194,3.5319,4372.0,4371.9,0.4774]
[1756569758095,0.3241,4372.0,4371.9,0.4774]
[1756569759990,0.3241,4372.0,4371.9,0.2844]
[1756569761092,0.3241,4372.0,4371.9,0.4858]
[1756569762191,3.2078,4372.5,4372.4,0.2014]
[1756569762388,3.2078,4372.5,4372.4,0.5103]
[1756569762700,3.2078,4372.5,4372.4,4.80050782]
[1756569763194,3.4028,4373.0,4372.9,0.2014]
[1756569763492,3.2078,4373.0,4372.9,0.7413]
[1756569764892,3.2078,4373.5,4373.4,0.2014]
[1756569765093,3.2078,4373.5,4373.4,0.5103]
[1756569765686,3.2078,4374.0,4373.9,0.2014]
[1756569765993,3.2078,4374.0,4373.9,0.6833]
[1756569767391,0.195,4374.0,4373.9,0.6833]
[1756569768197,3.3362,4374.5,4374.0,0.3089]
[1756569768497,3.5312,4374.5,4374.4,0.5103]
[1756569769390,3.5312,4374.5,4374.4,0.3089]
[1756569769696,3.4028,4374.5,4374.0,0.3089]
[1756569769897,0.3234,4374.1,4374.0,0.5103]
[1756569770996,0.3234,4374.1,4374.0,0.7413]
[1756569772695,0.3234,4374.1,4373.4,3.2078]
[1756569772900,0.3234,4373.6,4373.5,0.7413]
[1756569779504,3.2078,4373.8,4373.6,0.3089]
[1756569779700,3.2078,4373.8,4373.7,0.2014]
[1756569780007,3.2078,4373.8,4373.7,0.5103]
[1756569780599,3.2078,4374.4,4373.7,0.5103]
[1756569780796,3.2078,4374.4,4374.3,0.5103]
[1756569781004,3.2078,4374.4,4374.3,0.7413]
[1756569781403,3.2078,4374.9,4374.4,0.3089]
[1756569781613,0.1284,4375.4,4374.8,0.2014]
[1756569781906,0.3234,4375.4,4375.3,0.5103]
[1756569782209,0.3234,4375.4,4374.3,0.231]
[1756569782412,0.3234,4375.4,4374.1,3.2078]
[1756569782413,3.5312,4374.9,4374.8,0.5103]
[1756569784905,0.195,4374.6,4374.5,0.3089]
[1756569785103,0.3234,4374.6,4374.5,0.7413]
[1756569785608,3.3362,4374.9,4374.5,0.4324]
[1756569785908,3.4028,4374.9,4374.8,0.5103]
[1756569786103,0.3234,4374.7,4374.6,0.228]
[1756569786405,0.3234,4374.5,4374.4,0.231]
[1756569786807,0.3234,4374.5,4374.3,0.3089]
[1756569787003,0.3234,4374.1,4374.0,0.5103]
[1756569787204,0.3234,4374.1,4374.0,0.7413]
[1756569788505,3.2078,4374.4,4374.0,0.7413]
[1756569788711,3.2078,4374.4,4374.3,0.1989]
[1756569789008,3.2078,4374.4,4374.3,0.5088]
[1756569789804,0.1289,4374.8,4374.3,0.5088]
[1756569790110,0.1952,4374.5,4374.4,0.5088]
[1756569791109,0.3241,4374.5,4374.4,0.5088]
[1756569791809,0.3241,4374.5,4374.4,0.3099]
[1756569792107,0.3241,4374.4,4374.3,0.231]
[1756569792309,3.5319,4374.4,4374.3,0.231]
[1756569792610,3.5319,4374.4,4374.3,0.5409]
[1756569793804,3.5319,4374.4,4374.3,0.5088]
[1756569794511,0.1952,4373.7,4373.6,0.5088]
[1756569794704,0.3241,4373.7,4373.6,0.54110499]
[1756569794908,0.3241,4373.7,4373.6,0.231]
[1756569795103,0.3241,4373.7,4373.6,0.5409]
[1756569795305,0.3241,4373.7,4373.6,0.5088]
[1756569801214,0.1952,4373.7,4373.6,0.5088]
[1756569801910,3.2078,4373.9,4373.7,0.3099]
[1756569802111,3.2078,4373.9,4373.6,0.1989]
[1756569802112,3.2078,4373.9,4373.8,0.5088]
[1756569802412,2.849699,4376.9,4373.8,0.5088]
[1756569802413,3.2078,4374.4,4373.8,0.50882968]
[1756569802613,3.2078,4374.4,4374.3,0.5088]
[1756569802811,3.2078,4374.4,4374.3,1.04972968]
[1756569803013,3.2078,4374.4,4374.3,5.04972968]
[1756569803813,3.2078,4374.9,4374.4,0.3099]
[1756569804012,3.2078,4374.9,4374.3,4.54092968]
[1756569804013,3.2078,4374.9,4374.8,0.5088]
[1756569807914,0.1802072,4376.6,4374.8,0.5088]
[1756569807915,3.4897,4375.5,4374.9,0.3099]
[1756569808216,3.6849,4375.5,4375.4,0.5088]
[1756569813118,0.2819,4375.4,4374.7,0.3099]
[1756569813422,0.4771,4374.8,4374.7,0.5088]
[1756569813616,0.4771,4374.8,4374.7,1.04958879]
[1756569814322,0.1952,4374.8,4374.7,1.04958879]
[1756569816018,0.2819,4375.0,4374.8,0.3099]
[1756569816224,0.4771,4375.0,4374.9,0.81858879]
[1756569816724,0.4771,4375.0,4374.9,0.81784446]
[1756569818926,0.4771,4375.0,4374.9,0.81778422]
[1756569819723,0.1952,4375.0,4374.6,3.2078]
[1756569819928,0.4923,4374.8,4374.1,32.927]
[1756569820130,0.4923,4374.7,4374.6,0.4749]
[1756569824030,0.2068,4374.7,4374.6,0.4749]
[1756569824831,0.2855,4374.9,4374.7,0.2882]
[1756569825034,0.4923,4374.9,4374.8,0.7059]
[1756569825236,3.2078,4375.0,4374.9,0.2882]
[1756569825428,3.4146,4375.0,4374.9,0.4749]
[1756569825732,3.7001,4375.0,4374.9,0.4749]
[1756569827923,3.2078,4375.0,4374.9,0.4749]
[1756569828436,3.2078,4375.0,4374.9,0.78432238]
[1756569828633,3.7001,4375.0,4374.9,0.78432238]
[1756569828933,0.2855,4375.4,4375.0,0.2882]
[1756569829126,0.2068,4375.4,4375.3,0.1867]
[1756569829329,0.2068,4375.5,4375.4,0.4749]
[1756569829533,0.4923,4375.5,4375.4,0.78443849]
[1756569830429,0.4923,4375.5,4375.4,0.30953849]
[1756569830830,0.4923,4375.5,4375.4,0.54053849]
[1756569831025,0.4923,4375.5,4375.4,0.30953849]
[1756569831332,7.7001,4375.5,4375.4,0.231]
[1756569838634,3.7001,4375.5,4374.6,3.2078]
[1756569838839,0.4923,4374.8,4374.7,0.54142927]
[1756569840143,0.4923,4374.8,4374.7,0.82962927]
[1756569841538,0.4923,4374.8,4374.7,1.01632927]
[1756569842647,3.2078,4375.0,4374.9,0.1867]
[1756569842835,3.2078,4375.0,4374.9,0.78532927]
[1756569843040,0.2855,4375.3,4375.2,0.1867]
[1756569843238,0.4923,4375.3,4374.9,0.2882]
[1756569843437,0.2068,4375.1,4375.0,0.82958805]
[1756569843642,0.4923,4375.1,4375.0,1.01628805]
[1756569845647,0.4923,4375.1,4375.0,0.72811301]
[1756569845846,0.4923,4375.1,4375.0,1.01631301]
[1756569846042,0.4923,4375.1,4375.0,0.54141301]
[1756569846449,0.4923,4375.1,4375.0,0.72811301]
[1756569846747,0.4923,4375.1,4375.0,1.01631301]
[1756569846948,0.4923,4375.1,4375.0,0.54141301]
[1756569847148,0.4923,4375.1,4375.0,0.231]
[1756569848149,0.4923,4375.1,4374.7,0.2882]
[1756569848348,3.4069,4374.9,4374.8,0.54687563]
[1756569848549,3.6991,4374.9,4374.8,0.54687563]
[1756569848745,3.6991,4374.9,4374.8,0.31587563]
[1756569848943,3.6991,4374.9,4374.8,0.54687563]
[1756569850150,3.6991,4374.9,4374.8,0.31587563]
[1756569852149,3.6991,4374.9,4374.8,0.3158244]
[1756569852650,3.6991,4374.9,4374.1,33.2349]
[1756569852857,0.4913,4374.3,4374.2,0.31580523]
[1756569853063,3.6991,4374.3,4374.2,0.54680523]
[1756569853256,3.6991,4374.3,4374.2,0.231]
[1756569853456,3.6991,4374.3,4373.8,0.3079]
[1756569853657,0.2922,4374.2,4373.9,0.85458559]
[1756569853856,0.4913,4374.0,4373.9,0.5389]
[1756569854057,0.4913,4374.0,4373.9,0.85458596]
[1756569854258,0.4913,4374.0,4373.9,0.5389]
[1756569854458,0.4913,4374.0,4373.9,1.04454084]
[1756569854655,0.4913,4374.0,4373.9,0.729]
[1756569855163,0.4913,4374.0,4373.9,0.81354142]
[1756569855363,0.4913,4374.0,4373.9,1.04454142]
[1756569856255,0.4913,4374.0,4373.6,0.3079]
[1756569856457,0.231,4374.5,4373.6,0.3079]
[1756569856458,3.2078,4373.7,4373.6,0.498]
[1756569856662,3.2078,4373.7,4373.6,1.04438493]
[1756569858660,3.2078,4373.7,4373.6,1.0442099]
[1756569860369,3.2078,4374.2,4373.6,1.0442099]
[1756569860666,3.6991,4374.2,4374.1,0.498]
[1756569860868,3.6991,4374.2,4374.1,0.729]
[1756569864270,0.4913,4374.2,4374.1,0.729]
[1756569864469,3.6991,4374.2,4374.1,0.4211]
[1756569864769,3.6991,4374.2,4373.8,0.3079]
[1756569864964,0.1991,4374.0,4373.9,0.231]
[1756569865269,0.1991,4373.8,4373.7,0.231]
[1756569865471,0.4913,4373.8,4373.7,0.231]
[1756569865669,0.4913,4373.8,4373.7,0.5389]
[1756569866171,0.4913,4373.8,4373.7,0.3079]
[1756569866372,0.4913,4373.8,4373.7,0.5389]
[1756569866872,0.4913,4373.8,4373.7,0.3079]
[1756569867064,0.4913,4373.8,4373.7,0.5389]
[1756569867260,0.4913,4373.8,4373.7,0.729]
[1756569867665,3.2078,4374.2,4373.8,0.3079]
[1756569867666,0.2922,4374.1,4373.8,0.3079]
[1756569867963,3.4069,4374.2,4374.1,0.1901]
[1756569868164,3.4069,4374.2,4374.1,0.498]
[1756569868570,3.6991,4374.2,4374.1,0.498]
[1756569869865,3.4069,4374.2,4373.7,0.5389]
[1756569870072,0.1991,4373.8,4373.7,0.729]
[1756569870271,0.4913,4373.8,4373.7,0.729]
[1756569871767,0.4913,4373.8,4373.7,0.498]
[1756569871966,0.1991,4373.1,4373.0,0.498]
[1756569872164,0.4913,4373.1,4373.0,0.81324514]
[1756569872570,0.4913,4373.1,4373.0,1.04424514]
[1756569872764,0.4913,4373.1,4373.0,0.81324514]
[1756569872964,0.4913,4373.1,4373.0,1.04424514]
[1756569873360,3.2078,4373.6,4373.1,0.3079]
[1756569873560,0.1991,4373.5,4373.4,0.1901]
[1756569873764,0.1991,4373.5,4373.4,0.81324514]
[1756569874271,0.4913,4373.5,4373.4,0.81324514]
[1756569874969,0.4913,4373.5,4373.4,0.813355]
[1756569875873,3.2078,4373.6,4373.4,0.505455]
[1756569876173,3.2078,4373.6,4373.5,0.813355]
[1756569876666,3.2078,4374.1,4374.0,0.1901]
[1756569876872,3.2078,4374.1,4374.0,1.044355]
[1756569878677,3.2078,4374.6,4374.0,1.044355]
[1756569878878,3.409,4375.2,4375.1,0.1942]
[1756569879074,3.6902,4375.2,4375.1,0.4972]
[1756569879773,3.6902,4375.2,4375.1,0.80844793]
[1756569880175,3.6902,4375.2,4375.1,0.4972]
[1756569881379,0.4824,4375.2,4375.1,0.4972]
[1756569883880,0.4824,4375.2,4374.6,44.0078]
[1756569884177,0.2012,4374.8,4374.7,1.03917703]
[1756569884477,0.4824,4374.8,4374.7,1.03917703]
[1756569884674,0.4824,4374.8,4374.7,0.7282]
[1756569884975,0.4824,4374.8,4374.7,1.03911103]
[1756569885681,0.4824,4374.8,4374.7,0.54185317]
[1756569885883,0.4824,4374.8,4374.1,3.2078]
[1756569886083,0.4824,4374.3,4374.2,1.03905823]
[1756569886575,0.4824,4374.3,4374.2,0.31085823]
[1756569886774,0.4824,4374.3,4374.2,0.231]
[1756569888380,0.4824,4374.3,4373.8,0.303]
[1756569888580,0.4824,4374.3,4373.9,0.231]
[1756569888771,0.4824,4374.3,4374.0,0.231]
[1756569892286,0.2012,4374.3,4374.0,0.231]
[1756569892583,0.4824,4374.2,4374.1,0.4972]
[1756569898592,0.4824,4374.2,4373.1,3.2078]
[1756569898892,0.2812,4374.3,4373.3,0.303]
[1756569899091,0.2812,4374.3,4373.5,0.303]
[1756569899297,0.2812,4374.3,4373.7,0.303]
[1756569899893,0.2012,4373.8,4373.7,0.4972]
[1756569900193,0.4824,4373.8,4373.7,0.80811961]
[1756569901392,0.2812,4374.1,4373.7,0.1942]
[1756569901593,0.2812,4374.1,4374.0,0.1942]
[1756569901793,0.2812,4374.1,4374.0,0.4972]
[1756569902093,0.4824,4374.1,4374.0,0.4972]
[1756569902696,0.2812,4374.0,4373.8,0.231]
[1756569902994,0.4824,4373.9,4373.8,0.7282]
[1756569905492,0.4824,4373.9,4373.8,0.4972]
[1756569905693,0.4824,4373.8,4373.7,0.1942]
[1756569905893,0.4824,4373.8,4373.7,0.4972]
[1756569906594,3.2078,4373.9,4373.8,0.4972]
[1756569907398,3.7112,4373.9,4373.8,0.4972]
[1756569909995,3.2078,4373.9,4373.8,0.4972]
[1756569911502,3.7112,4373.9,4373.8,0.4972]
[1756569911902,3.7112,4373.9,4373.8,0.7282]
[1756569913094,3.4058,4373.9,4373.1,3.2078]
[1756569913300,0.5034,4373.4,4373.3,0.5107]
[1756569913603,0.198,4373.4,4373.3,0.5107]
[1756569913801,0.3054,4373.7,4373.3,0.206]
[1756569914005,0.5034,4373.7,4373.1,3.2078]
[1756569914204,0.5034,4373.5,4373.4,0.7417]
[1756569915412,0.5034,4373.5,4373.4,0.5107]
[1756569915603,0.5034,4373.5,4373.4,0.231]
[1756569915999,0.3054,4373.4,4372.9,32.922]
[1756569916205,0.5034,4373.1,4373.0,0.7417]
[1756569916508,3.2078,4373.4,4373.1,0.3047]
[1756569916509,0.3054,4373.3,4373.1,0.3047]
[1756569916702,0.3054,4373.3,4373.2,0.206]
[1756569916902,0.3054,4373.3,4373.2,0.5107]
[1756569917805,3.5132,4373.4,4373.3,0.5107]
[1756569918003,3.2078,4373.4,4373.3,0.5107]
[1756569918709,3.2078,4374.2,4373.3,0.5107]
[1756569918905,0.5034,4374.1,4374.0,0.5107]
[1756569920004,3.2078,4374.2,4374.0,0.206]
[1756569920311,3.2078,4374.8,4374.7,0.206]
[1756569920505,3.2078,4374.8,4374.7,0.7417]
[1756569920911,3.5132,4375.3,4374.7,0.437]
[1756569921113,3.5132,4375.3,4375.1,0.206]
[1756569921114,0.5034,4375.2,4375.1,0.206]
[1756569921310,0.5034,4375.0,4374.9,0.231]
[1756569921606,0.4063,4374.3,4374.2,0.231]
[1756569922009,0.4063,4374.3,4374.2,0.5357]
[1756569922208,0.4063,4374.3,4374.2,0.7417]
[1756569923816,0.2083,4374.2,4373.6,0.3047]
[1756569924114,0.4063,4373.9,4373.8,0.5107]
[1756569924309,0.198,4373.9,4373.8,0.5107]
[1756569924503,0.198,4373.9,4373.8,0.7417]
[1756569924910,0.198,4373.6,4373.5,0.5107]
[1756569925115,0.2083,4373.5,4372.9,0.3047]
[1756569925412,0.4063,4373.5,4373.4,0.5107]
[1756569928016,0.198,4373.5,4373.4,0.5107]
[1756569930321,3.2078,4373.7,4373.6,0.206]
[1756569930513,3.2078,4373.7,4373.6,0.7417]
[1756569931112,3.6141,4373.7,4373.6,0.7417]
[1756569933020,0.4063,4373.7,4373.6,0.5107]
[1756569933319,0.4063,4373.7,4373.6,0.7417]
[1756569934717,0.4063,4373.7,4373.6,0.231]
[1756569935911,0.4063,4373.7,4373.6,0.5357]
[1756569936114,0.4063,4373.7,4373.6,0.7417]
[1756569936921,0.4063,4373.7,4373.6,0.5107]
[1756569939822,0.4063,4373.7,4372.7,3.2078]
[1756569939823,0.198,4373.7,4373.4,0.231]
[1756569940122,0.409,4373.5,4373.4,0.5415]
[1756569940513,0.409,4373.5,4373.4,0.742]
[1756569942625,0.409,4373.5,4373.4,0.511]
[1756569944323,0.409,4373.5,4372.7,3.2078]
[1756569944522,0.409,4372.7,4372.6,0.511]
[1756569944921,0.409,4372.7,4372.6,0.742]
[1756569945624,0.409,4372.7,4372.6,0.511]
[1756569946327,0.2082,4372.6,4372.5,33.4735]
[1756569946528,0.409,4372.6,4372.5,0.3105]
[1756569947025,0.409,4372.6,4372.4,0.231]
[1756569947220,3.2078,4372.8,4372.4,0.5415]
[1756569947221,0.2082,4372.5,4372.4,0.5415]
[1756569947421,0.409,4372.5,4372.4,0.3105]
[1756569948927,0.2082,4372.4,4371.3,0.3105]
[1756569949232,0.2082,4372.4,4371.2,0.18015273]
[1756569949233,0.2082,4372.0,4371.4,0.231]
[1756569949426,3.2078,4372.1,4371.5,0.3105]
[1756569949622,0.2082,4372.0,4371.5,0.3105]
[1756569949825,0.2008,4371.7,4371.6,0.4315]
[1756569950028,0.409,4371.7,4371.6,0.742]
[1756569951127,0.409,4371.7,4371.6,0.511]
[1756569951732,0.409,4371.7,4371.5,0.5415]
[1756569952036,3.6168,4371.6,4371.5,0.742]
[1756569952832,3.6168,4371.6,4371.5,0.511]
[1756569953038,3.6168,4371.6,4371.4,0.231]
[1756569953738,0.2082,4371.5,4371.4,0.5415]
[1756569953939,0.409,4371.5,4371.4,0.5415]
[1756569954142,0.409,4371.2,4371.1,0.5415]
[1756569954342,0.409,4371.2,4371.1,0.742]
[1756569954739,0.2008,4371.2,4371.1,0.742]
[1756569955240,0.409,4371.2,4371.1,0.742]
[1756569956947,3.2078,4371.6,4371.1,0.4315]
[1756569957147,3.4086,4371.6,4371.5,0.2005]
[1756569957347,3.6168,4371.6,4371.5,0.511]
[1756569958548,3.6168,4371.6,4371.5,0.3105]
[1756569958848,3.6168,4371.6,4371.2,0.231]
[1756569958849,0.409,4371.3,4371.2,0.231]
[1756569959040,0.2082,4371.2,4371.1,0.3105]
[1756569959246,0.409,4371.2,4371.0,0.5415]
[1756569959443,3.6168,4371.1,4371.0,0.3105]
[1756569961247,3.6168,4371.1,4370.8,0.231]
[1756569961446,0.409,4371.0,4370.9,0.3105]
[1756569961654,0.409,4371.0,4370.9,0.511]
[1756569962844,0.409,4371.0,4370.9,0.3105]
[1756569963451,3.2078,4371.1,4370.9,0.2005]
[1756569963652,3.2078,4371.1,4371.0,0.511]
[1756569964053,3.6168,4371.1,4371.0,0.511]
[1756569969053,3.6168,4371.1,4370.6,0.231]
[1756569969360,0.2075,4370.8,4370.7,0.4925]
[1756569970056,0.416,4370.8,4370.7,0.4925]
[1756569970753,0.416,4370.8,4370.2,0.231]
[1756569970952,3.6238,4370.5,4370.4,0.4925]
[1756569974459,0.2085,4370.4,4370.1,0.2858]
[1756569974655,0.2075,4370.2,4370.1,0.4925]
[1756569975158,0.416,4370.2,4370.1,0.4925]
[1756569976260,3.2078,4370.5,4369.7,0.2858]
[1756569976467,0.2075,4369.8,4369.7,0.7235]
[1756569976666,0.416,4369.8,4369.7,0.7235]
[1756569977155,3.2078,4370.0,4369.8,0.2858]
[1756569977467,3.6238,4370.0,4369.9,0.4925]
[1756569978563,3.6238,4370.0,4369.6,0.231]
[1756569978564,0.2085,4369.9,4369.6,0.231]
[1756569978869,0.416,4369.7,4369.6,0.4377]
[1756569979258,0.416,4369.7,4369.6,0.7235]
[1756569980369,0.416,4369.7,4369.6,0.4925]
[1756569982171,0.416,4369.4,4369.3,0.4925]
[1756569982371,3.6238,4369.4,4369.3,0.4925]
[1756569984470,3.2078,4369.4,4369.3,0.4925]
[1756569984764,3.2078,4369.4,4369.2,0.50964]
[1756569984765,3.2078,4369.9,4369.8,0.2067]
[1756569984970,3.2078,4369.9,4369.8,0.4925]
[1756569988167,3.6238,4369.9,4369.8,0.4925]
[1756569988574,3.6238,4369.9,4369.8,0.2858]
[1756569989073,3.6238,4369.9,4369.8,0.4925]
[1756569989470,3.2078,4369.9,4369.8,0.4925]
[1756569989969,3.2078,4369.9,4369.8,0.72134]
[1756569990168,3.2078,4369.9,4369.8,4.72134]
[1756569990570,3.2078,4370.4,4369.8,4.84742]
[1756569990773,3.2078,4370.4,4370.3,0.4925]
[1756569991074,3.2078,4370.4,4370.3,0.7235]
[1756569991874,3.2078,4370.4,4370.3,4.7235]
[1756569992074,3.2078,4370.4,4370.3,4.95231]
[1756569992479,3.4153,4371.1,4371.0,0.2067]
[1756569992670,3.4153,4371.1,4371.0,0.7235]
[1756569992972,3.6238,4371.1,4371.0,0.7235]
[1756569993177,3.6238,4371.1,4371.0,0.231]
[1756569993374,3.4153,4371.1,4370.9,0.231]
[1756569993677,0.2075,4371.0,4370.9,0.231]
[1756569993873,0.416,4371.0,4370.9,0.231]
[1756569994781,0.416,4371.0,4370.4,0.2858]
[1756569995078,0.416,4370.6,4370.5,0.7235]
[1756569996267,0.2075,4370.6,4370.5,0.7235]
[1756569996472,3.4153,4370.6,4369.9,0.2858]
[1756569996669,0.2075,4370.0,4369.9,0.5168]
[1756569996881,0.416,4370.0,4369.9,0.5168]
[1756569997072,0.416,4370.0,4369.6,0.2858]
[1756569997377,0.4058,4369.8,4369.7,0.5137]
[1756569997577,0.4058,4369.8,4369.7,0.7447]
[1756569999877,0.4058,4369.8,4369.7,0.5137]
[1756570000081,0.1965,4369.8,4369.7,0.231]
[1756570000380,0.4058,4369.8,4369.7,0.231]
[1756570002182,0.4058,4369.8,4369.7,0.5383]
[1756570002676,0.4058,4369.8,4369.7,0.7447]
[1756570002877,0.4058,4369.8,4369.7,0.5137]
[1756570003171,0.4058,4369.8,4369.7,0.7447]
[1756570006581,0.4058,4369.8,4369.7,0.5137]
[1756570006783,0.4058,4369.8,4369.7,0.7447]
[1756570010193,3.2078,4370.1,4369.8,0.3073]
[1756570010396,3.2078,4370.1,4370.0,0.5137]
[1756570010600,3.2078,4370.1,4370.0,0.7447]
[1756570012097,3.6136,4370.1,4370.0,0.7447]
[1756570018399,3.2078,4370.1,4370.0,0.7447]
[1756570018605,3.2078,4370.6,4370.0,0.4374]
[1756570018802,3.6136,4370.6,4370.5,0.2064]
[1756570019002,3.6136,4370.6,4370.5,0.5137]
[1756570020209,3.6136,4370.6,4370.0,0.231]
[1756570020402,0.2093,4370.5,4370.1,0.3073]
[1756570020608,0.1965,4370.2,4370.1,0.5137]
[1756570021406,0.4058,4370.2,4370.1,0.5137]
[1756570021701,3.2078,4370.6,4370.2,0.3073]
[1756570021906,3.4043,4370.6,4370.5,0.5137]
[1756570023105,3.2078,4370.6,4370.5,0.7447]
[1756570024503,0.2093,4371.1,4370.6,0.3073]
[1756570024708,0.4058,4371.1,4371.0,0.5137]
[1756570025104,0.2093,4372.0,4371.1,0.3073]
[1756570025403,0.4058,4372.0,4371.9,0.5137]
[1756570025802,3.2078,4372.1,4372.0,0.5137]
[1756570026202,3.6136,4372.1,4372.0,0.5137]
[1756570026405,3.80170621,4372.1,4372.0,0.5137]
[1756570028406,3.80170621,4372.1,4372.0,0.7447]
[1756570028603,0.18810621,4372.1,4372.0,4.97343]
[1756570028807,3.2078,4372.6,4372.5,0.2074]
[1756570029007,3.2078,4372.6,4372.5,0.5073]
[1756570030211,3.2078,4372.6,4372.5,0.7383]
[1756570030404,0.3061,4372.9,4372.5,0.7383]
[1756570030607,0.5134,4373.0,4372.9,0.2074]
[1756570030802,0.5134,4373.0,4372.9,0.7383]
[1756570031904,3.2078,4373.6,4373.0,0.2074]
[1756570032207,3.2078,4373.6,4372.9,0.231]
[1756570032208,3.2078,4373.6,4373.5,0.5073]
[1756570032502,3.2078,4373.6,4373.5,0.7383]
[1756570033301,3.4151,4373.6,4373.5,0.7383]
[1756570033807,0.5134,4373.6,4373.5,0.7383]
[1756570036713,0.5134,4373.6,4373.5,0.5073]
[1756570036913,0.5134,4373.6,4373.5,0.231]
[1756570038013,0.5134,4373.6,4373.5,0.5309]
[1756570038315,0.5134,4373.6,4373.5,0.2999]
[1756570038509,3.2078,4374.1,4373.5,0.4384]
[1756570038510,0.3061,4374.0,4373.5,0.4384]
[1756570038715,3.4151,4374.1,4374.0,0.2074]
[1756570039017,3.7212,4374.1,4374.0,0.7383]
[1756570041016,3.7212,4374.1,4374.0,0.231]
[1756570041418,3.7212,4374.1,4374.0,0.7383]
[1756570043020,3.4151,4374.1,4374.0,0.7383]
[1756570044717,0.2073,4374.1,4374.0,0.7383]
[1756570045415,0.5134,4374.1,4374.0,0.7383]
[1756570045613,0.2073,4374.1,4374.0,0.7383]
[1756570047720,0.5134,4374.1,4374.0,0.7383]
[1756570048422,0.2073,4374.1,4374.0,0.7383]
[1756570049522,0.5134,4374.1,4374.0,0.7383]
[1756570051119,0.3061,4374.5,4374.0,0.4384]
[1756570051319,0.2073,4374.5,4374.4,0.2074]
[1756570051521,0.5134,4374.5,4374.4,0.5073]
[1756570054425,3.2078,4374.6,4374.5,0.5073]
[1756570054627,3.2078,4374.6,4374.5,0.7383]
[1756570055021,0.3061,4375.0,4374.6,0.2999]
[1756570055221,0.5134,4375.0,4374.9,0.2074]
[1756570055419,0.5134,4375.0,4374.9,0.5073]
[1756570055925,0.5134,4375.0,4374.9,0.7383]
[1756570056122,0.5134,4375.0,4374.9,0.5073]
[1756570056323,0.2073,4375.0,4374.9,0.7383]
[1756570058730,0.3061,4375.3,4374.9,0.7383]
[1756570059035,0.5098,4375.3,4375.2,0.4849]
[1756570059832,1.07892005,4375.3,4375.2,0.4849]
[1756570060423,0.2037,4374.6,4374.5,0.4849]
[1756570060633,0.4942,4374.6,4374.5,0.7159]
[1756570063826,0.4942,4374.6,4374.5,0.4849]
[1756570064031,0.4942,4374.6,4374.5,0.7159]
[1756570064231,0.4942,4374.6,4374.5,0.4849]
[1756570064431,0.4942,4374.6,4374.5,0.7159]
[1756570067034,0.2037,4374.6,4374.5,0.7159]
[1756570067234,3.2078,4375.5,4374.6,0.2923]
[1756570067435,0.2905,4375.3,4374.6,0.2923]
[1756570067635,0.2905,4375.1,4374.6,0.2923]
[1756570067938,0.4942,4374.7,4374.6,0.4849]
[1756570069337,0.2037,4374.7,4374.6,0.4849]
[1756570070436,0.4942,4374.7,4374.6,0.4849]
[1756570072039,0.4942,4374.7,4374.6,0.7159]
[1756570072439,3.2078,4375.5,4374.6,0.4236]
[1756570072737,3.2078,4375.5,4374.8,0.4849]
[1756570072738,0.2037,4374.9,4374.8,0.4849]
[1756570073038,0.4942,4374.9,4374.8,0.4849]
[1756570074342,0.4942,4374.9,4374.8,0.7159]
[1756570075040,0.2037,4374.9,4374.8,0.7159]
[1756570075242,0.2905,4375.1,4374.8,0.7159]
[1756570075539,0.2905,4375.1,4374.9,0.2923]
[1756570075745,0.2905,4375.1,4375.0,0.4849]
[1756570077536,0.4942,4375.1,4375.0,0.4849]
[1756570080042,3.2078,4375.5,4375.0,0.4849]
[1756570080336,3.4115,4375.5,4375.4,0.4849]
[1756570080544,3.4115,4375.5,4375.4,0.5233]
[1756570080844,3.4115,4375.5,4375.4,0.231]
[1756570080845,3.702,4375.5,4375.4,0.231]
[1756570081433,3.702,4375.5,4375.2,0.2923]
[1756570081434,3.702,4375.5,4374.5,0.2923]
[1756570081639,0.4942,4374.6,4374.5,0.2923]
[1756570081838,0.4942,4374.6,4374.5,0.5233]
[1756570082345,0.4942,4374.6,4374.5,0.7159]
[1756570083843,0.4942,4374.6,4374.3,32.931]
[1756570084047,0.4942,4374.5,4374.4,0.231]
[1756570084444,0.4942,4374.5,4374.4,0.5233]
[1756570087345,0.4942,4374.5,4374.4,0.7159]
[1756570087644,0.2957,4374.4,4374.3,32.931]
[1756570087846,0.2957,4374.4,4374.3,33.162]
[1756570088044,0.2957,4374.4,4374.3,33.4668]
[1756570090441,0.4985,4374.4,4373.7,2.0299039]